[Event "4NCL 2022-2023"]
[Site "Daventry"]
[Date "2023.02.11"]
[Round "5.46"]
[White "Murray, David"]
[Black "McDonald, Neil"]
[Result "1/2-1/2"]
[ECO "C12"]
[WhiteElo "2120"]
[BlackElo "2408"]
[Annotator "TA"]
[PlyCount "104"]
[EventDate "2022.10.20"]
[EventType "team-tourn"]
[EventCountry "ENG"]
[SourceTitle "playchess.com"]
[Source "ChessBase"]
[SourceQuality "1"]
[TimeControl "40/6000+30:2400+30"]

{[%evp 14,104,5,5,21,-36,-17,-37,-31,-48,0,0,0,-86,-77,-86,-8,-95,-85,-69,-56,-68,-59,-57,-64,-68,-59,-75,-74,-95,-108,-127,-126,-129,-126,-145,-134,-135,-95,-97,-93,-139,-102,-101,-91,-89,-89,-114,-107,-103,-24,-59,-10,-135,-135,-159,-120,-119,-119,-266,-266,-256,-94,-94,-70,-71,-58,-60,-54,-105,0,-58,0,0,0,0,0,0,0,0,0,0,0,0,0,0,0,0,0,0,0,0,0]} 1. e4 {[%emt 0:00:05]} e6 {[%emt 0:00:04]} 2. d4 {[%emt 0:00:14]} d5 {[%emt 0:00:09]} 3. Nc3 {[%emt 0:00:12]} Nf6 {[%emt 0:00:17]} 4. Bg5 {[%emt 0:01:15]} Bb4 {[%emt 0:00:22]} 5. e5 {[%emt 0:00:33]} h6 {[%emt 0:00:06]} 6. Bh4 {[%emt 0:01:44]} g5 {[%emt 0:00:38]} 7. Bg3 {[%emt 0:00:12]} Ne4 {[%emt 0:00:30]} 8. Nge2 $1 {[%emt 0:01:00]} f5 {[%emt 0:03:16] C12: French: Classical System: McCutcheon Variation.} 9. exf6 {[%emt 0:01:36] was the old line (9.f3).} (9. f3 $11 Nxc3 10. Nxc3 (10. bxc3 Be7 $11)) 9... Qxf6 $15 {[%emt 0:01:12]} 10. Qd3 {[%emt 0:05:26]} Nc6 {[%emt 0:04:47] [#] Black is slightly better.} 11. a3 $146 {[%emt 0:04:09]} ({Predecessor:} 11. O-O-O Nxf2 12. Bxf2 Qxf2 13. h4 gxh4 14. g3 Qf6 15. Nb5 Ba5 16. Rxh4 Bd7 17. Nf4 {0-1 De la Riva Aguado,O (2458)-Vallejo Pons,F (2519) ESP-chT Div 1 1999 (4)}) 11... Bxc3+ {[%emt 0:02:44]} (11... Nxg3 $15 12. hxg3 Be7) 12. Nxc3 $11 {[%emt 0:04:12]} Nxg3 {[%emt 0:06:34]} (12... Qxd4 13. Nxe4 dxe4 14. Qxd4 Nxd4 15. O-O-O $16 (15. Bxc7 $2 Nxc2+ 16. Kd2 Nxa1 $19)) 13. Qxg3 {[%emt 0:09:10]} (13. hxg3 $11 Nxd4 14. O-O-O) 13... Nxd4 $17 {[%emt 0:06:52]} (13... Qxd4 $6 14. h4 $11) 14. O-O-O {[%emt 0:21:51]} c5 {[%emt 0:00:35]} (14... c6 $17 {next ...Nf5 is good for Black.} 15. Bd3 O-O) 15. Kb1 {[%emt 0:01:22]} (15. Qc7 $11) 15... Qf4 {[%emt 0:11:20]} 16. Qh3 {[%emt 0:03:56]} Bd7 {[%emt 0:02:18]} (16... Qxf2 17. Bd3 h5 18. Bg6+ (18. Rhf1 g4 $16) 18... Kd8 19. Rhf1 $18) 17. Ne2 $1 {[%emt 0:10:59]} Nxe2 {[%emt 0:03:02]} (17... Qxf2 18. Nxd4 cxd4 19. Bb5 Bxb5 20. Qxe6+ Kf8 21. Qxd5 $11) 18. Bxe2 {[%emt 0:07:19]} O-O-O $36 {[%emt 0:00:26][%mdl 2048] Black has good play.} ({Don't do} 18... Qxf2 19. Bh5+ Kd8 20. Rhf1 $16) 19. Bg4 {[%emt 0:01:31]} Kb8 {[%emt 1:04:48]} ({Reject} 19... Qxf2 20. Bxe6 Bxe6 21. Qxe6+ Kb8 22. Rxd5 $11) 20. Rhe1 {[%emt 0:01:45]} Qxf2 {[%emt 0:00:00]} 21. Re2 {[%emt 0:05:46]} Qf4 {[%emt 0:00:00]} 22. Bxe6 {[%emt 0:02:47]} Bb5 {[%emt 0:00:00]} 23. Red2 {[%emt 0:03:46]} d4 {[%emt 0:00:00]} 24. Qb3 {[%emt 0:00:56]} Bc6 {[%emt 0:00:00]} 25. g3 {[%emt 0:00:45]} Qe5 {[%emt 0:00:00]} 26. Bc4 {[%emt 0:00:53]} Rhe8 {[%emt 0:00:00]} 27. Qd3 {[%emt 0:05:17]} ({Better is} 27. Re2 Qf6 28. Rde1) 27... Be4 {[%emt 0:00:00]} 28. Qf1 {[%emt 0:00:58]} Qd6 {[%emt 0:00:00]} 29. Rf2 {[%emt 0:07:00]} Rf8 {[%emt 0:00:00] Repels Rf6} 30. Rdd2 {[%emt 0:00:40]} g4 {[%emt 0:00:00]} 31. Rde2 {[%emt 0:02:49] [#]} Rxf2 {[%emt 0:00:00]} (31... d3 $1 $17 {[%cal Rd3c2]} 32. Bxd3 (32. Rxe4 $2 {is the wrong capture.} d2 $19) 32... Bxd3 33. Rxf8 Rxf8) 32. Rxf2 $11 {[%emt 0:00:40]} Bf3 {[%emt 0:00:00]} (32... Re8 $1 $15 {should be considered.}) 33. Qe1 {[%emt 0:02:44]} (33. Be2 $11 {was the only way to keep the balance.}) 33... a6 $17 {[%emt 0:00:00]} 34. a4 {[%emt 0:00:25]} Ka7 {[%emt 0:01:03]} 35. Rf1 {[%emt 0:00:19]} Qc6 {[%emt 0:00:31]} 36. a5 {[%emt 0:00:49]} (36. Qa5 $17 {was worth a try.} Qd6 37. Qd2) 36... Re8 $19 {[%emt 0:01:19]} 37. Qd2 {[%emt 0:00:22]} Re5 {[%emt 0:01:15]} (37... Re3 $19 {and Black stays clearly on top. ...Qe8 would be deadly.} 38. b3 Qe8) 38. Re1 $17 {[%emt 0:02:13]} Qc7 {[%emt 0:01:12]} 39. b3 {[%emt 0:01:27]} Qe7 {[%emt 0:02:21]} 40. Rxe5 {[%emt 0:00:44]} Qxe5 $15 {[%emt 0:00:05][%mdl 4096] Endgame KQB-KQB} 41. Bd3 {[%emt 0:00:00]} (41. Qxh6 $15 Qe1+ 42. Qc1 Qxa5 43. Qg5) 41... h5 {[%emt 0:00:00]} (41... Qe3 $17 42. Qc1 Kb8) 42. Kb2 {[%emt 0:00:00]} ({White should play} 42. Qh6 $1 $11) 42... Bc6 {[%emt 0:01:12]} (42... Qf6 $15) 43. Qh6 $1 $11 {[%emt 0:03:11] The position is equal.} c4 {[%emt 0:01:54][%mdl 64] [#] Discovered Attack} 44. bxc4 {[%emt 0:02:56]} Qxa5 {[%emt 0:00:24]} 45. Qd6 {[%emt 0:02:52] Repels Qe5} Qc3+ {[%emt 0:09:03]} 46. Ka2 {[%emt 0:06:07]} a5 {[%emt 0:00:59]} 47. Qc5+ {[%emt 0:03:45]} Ka6 {[%emt 0:00:15]} 48. Qxh5 {[%emt 0:02:18]} Qb4 {[%emt 0:16:09]} 49. Qxg4 {[%emt 0:04:26]} Qa4+ {[%emt 0:02:37]} 50. Kb2 {[%emt 0:01:14]} (50. Kb1 $5 Qb4+ $8 51. Ka2 Qa4+ 52. Kb1 Qb4+ 53. Ka2 $11) 50... Qb4+ {[%emt 0:00:06]} 51. Ka2 {[%emt 0:01:50]} Qa4+ {[%emt 0:03:45]} 52. Kb2 {[%emt 0:00:08]} (52. Kb1 $5 Qb4+ $8 53. Ka2 $11) 52... Qb4+ {[%emt 0:00:07] Black had all chances to win.   Weighted Error Value: White=0.20 (precise) /Black=0.18 (very precise)} 1/2-1/2

[Event "4NCL 2022-2023"]
[Site "Daventry"]
[Date "2023.02.11"]
[Round "5.47"]
[White "Toma, Katarzyna"]
[Black "Bourached, Anthony"]
[Result "1-0"]
[ECO "B13"]
[WhiteElo "2231"]
[BlackElo "2043"]
[Annotator "TA"]
[PlyCount "57"]
[EventDate "2022.10.20"]
[EventType "team-tourn"]
[EventCountry "ENG"]
[SourceTitle "playchess.com"]
[Source "ChessBase"]
[SourceQuality "1"]
[TimeControl "40/6000+30:2400+30"]

{[%evp 15,57,25,19,22,23,21,22,25,33,0,11,10,10,-105,-14,-79,-66,-105,-20,-6,1,-14,-3,-5,73,66,77,79,114,116,303,291,295,217,226,214,275,259,674,594,525,317,762,733]} 1. e4 {[%emt 0:00:03]} c6 {[%emt 0:00:09]} 2. d4 {[%emt 0:00:22]} d5 {[%emt 0:00:09]} 3. exd5 {[%emt 0:00:16]} cxd5 {[%emt 0:00:07]} 4. Bd3 {[%emt 0:00:05]} Nc6 {[%emt 0:00:23]} 5. c3 {[%emt 0:00:06]} Qc7 {[%emt 0:00:54]} 6. Ne2 {[%emt 0:00:23]} e6 {[%emt 0:00:51]} 7. Bf4 {[%emt 0:04:19]} Bd6 {[%emt 0:00:22]} 8. Bxd6 {[%emt 0:00:15]} Qxd6 {[%emt 0:00:07]} 9. Nd2 {[%emt 0:04:41] B13: Caro-Kann: Exchange Variation and Panov-Botvinnik Attack.} Nge7 {[%emt 0:00:27]} 10. O-O {[%emt 0:02:08]} O-O {[%emt 0:00:35]} 11. f4 {[%emt 0:01:33] The position is equal.} Bd7 {[%emt 0:02:50]} 12. Rf3 {[%emt 0:05:39] [#]} Rae8 $146 {[%emt 0:07:34]} ({Predecessor:} 12... f6 13. Qc2 e5 14. fxe5 fxe5 15. dxe5 Nxe5 16. Rxf8+ Rxf8 17. Nd4 N7c6 18. Re1 g6 {½-½ Xiao,T (2027)-Bai,J (2586) CHN-chT Div-A 2022 (4.2)}) 13. Qe1 {[%emt 0:02:23]} Ng6 {[%emt 0:02:51]} 14. Rh3 {[%emt 0:16:21] [#]} (14. Nb3 $11) 14... Nce7 {[%emt 0:12:23]} ({Black should try} 14... e5 $1 $17 {[%cal Re5e4]} 15. fxe5 (15. dxe5 Qc5+ 16. Qf2 Qxf2+ 17. Kxf2 Bxh3 $17) 15... Ncxe5 16. dxe5 Qb6+ 17. Nd4 Bxh3 18. gxh3 Nxe5) 15. Nf3 {[%emt 0:03:05]} (15. Rf3 $11 {remains equal.}) 15... f6 $17 {[%emt 0:05:02]} 16. Rh5 {[%emt 0:04:00] [#]} Nf5 {[%emt 0:17:51] Prevents Nh4.} (16... Nxf4 17. Nxf4 (17. Bxh7+ Kf7 $16) 17... Qxf4 18. Bxh7+ Kf7 19. Qe2 $16) (16... Qb6 $1 $17 {aiming for ...e5.} 17. h3 Bb5 18. Bxb5 Qxb5) 17. Qd2 $11 {[%emt 0:10:14]} Qe7 {[%emt 0:18:42]} 18. Re1 {[%emt 0:06:10]} Qf7 {[%emt 0:02:10]} 19. Ng3 {[%emt 0:07:33]} Nxg3 {[%emt 0:20:33]} (19... h6 $11) 20. hxg3 $16 {[%emt 0:00:05][%cal Bh2g3,Bg3g4,Bg4g5][%mdl 32]} h6 {[%emt 0:02:31][%cal Og6f4]} 21. Rh2 {[%emt 0:05:23] White has more active pieces.} f5 {[%emt 0:06:30]} 22. g4 {[%emt 0:05:37] Strongly threatening g5.} Bc8 $2 {[%emt 0:06:56] This costs Black the game.} (22... fxg4 $2 23. Bxg6 Qxg6 24. Ne5 $18) (22... e5 $16) 23. g5 $18 {[%emt 0:00:43]} h5 {[%emt 0:00:01]} 24. Kf2 {[%emt 0:01:40]} ({Much less strong is} 24. Rxh5 e5 $18) 24... Qc7 {[%emt 0:00:25]} 25. g3 {[%emt 0:00:40]} ({Don't take} 25. Rxh5 $6 Qxf4 26. Qe2 Qd6 $14) 25... h4 {[%emt 0:00:33]} 26. Nxh4 {[%emt 0:00:42]} Kf7 {[%emt 0:00:55]} (26... Nxh4 27. Rxh4 Kf7) 27. Nxg6 {[%emt 0:02:26]} Kxg6 {[%emt 0:00:01]} 28. Reh1 {[%emt 0:02:58]} Qd8 $2 {[%emt 0:00:02]} (28... Kf7 29. Rh7 Rg8) 29. Be2 {[%emt 0:05:11] Weighted Error Value: White=0.48/Black=0.63} 1-0

[Event "4NCL 2022-2023"]
[Site "Daventry"]
[Date "2023.02.11"]
[Round "5.48"]
[White "Mirza, Diana"]
[Black "Haydon, David L"]
[Result "0-1"]
[ECO "B04"]
[WhiteElo "1904"]
[BlackElo "2268"]
[Annotator "TA"]
[PlyCount "84"]
[EventDate "2022.10.20"]
[EventType "team-tourn"]
[EventCountry "ENG"]
[SourceTitle "playchess.com"]
[Source "ChessBase"]
[SourceQuality "1"]
[TimeControl "40/6000+30:2400+30"]

{[%evp 13,84,14,31,8,11,5,11,3,16,6,-11,0,0,-10,0,-9,-7,-10,-12,-10,-18,-16,14,25,26,-14,-14,-16,-13,-14,-12,-8,0,-23,-13,-42,-20,-31,-21,-67,-57,-66,-79,-189,-179,-208,-211,-196,-205,-204,-203,-202,-191,-260,-264,-279,-273,-294,-295,-340,-328,-397,-393,-455,-382,-418,-439,-694,-651,-654,-638,-29997,-305]} 1. e4 {[%emt 0:00:03][%cal Be2e4,Be4e5][%mdl 32]} Nf6 {[%emt 0:02:56][%cal Bg8f6,Bf6d5,Bd5b6][%mdl 32]} 2. e5 {[%emt 0:00:09]} Nd5 {[%emt 0:00:08]} 3. c4 {[%emt 0:01:08]} Nb6 {[%emt 0:00:12]} 4. d4 {[%emt 0:00:11]} d6 {[%emt 0:05:43]} 5. exd6 {[%emt 0:04:26]} cxd6 {[%emt 0:01:28]} 6. Nf3 {[%emt 0:08:38]} g6 {[%emt 0:02:02]} 7. b3 {[%emt 0:11:46]} Bg7 {[%emt 0:01:47]} 8. Bb2 {[%emt 0:00:22] B04: Alekhine's Defence: 4 Nf3.} Nc6 {[%emt 0:17:11][%cal Bb8c6,Bc6d4,Bd4e2][%mdl 32]} 9. Be2 {[%emt 0:03:41]} O-O {[%emt 0:03:07]} 10. O-O {[%emt 0:00:22] The position is equal.} Bf5 {[%emt 0:07:41]} 11. Nc3 {[%emt 0:07:37]} e5 {[%emt 0:07:08][%cal Re5d4]} 12. d5 {[%emt 0:09:53] [#]} Nd4 $146 {[%emt 0:00:47]} ({Predecessor:} 12... Ne7 13. Nh4 Bd7 14. Ne4 Nf5 15. Nf3 Bc8 16. Rc1 Nd7 17. a4 Nf6 18. Nfd2 Nxe4 19. Nxe4 {1-0 Sitkauskaite,L (1367)-Sukyte,K (1405) LTU-ch (Women) 2020 (4)}) 13. Qd2 {[%emt 0:01:34]} Nxe2+ {[%emt 0:04:30]} 14. Nxe2 {[%emt 0:14:00]} Bg4 {[%emt 0:07:32]} 15. Ne1 {[%emt 0:01:18]} Bxe2 {[%emt 0:00:41]} 16. Qxe2 {[%emt 0:00:06]} f5 {[%emt 0:00:13]} 17. f4 {[%emt 0:17:32]} exf4 {[%emt 0:15:44]} 18. Bxg7 {[%emt 0:00:46]} Kxg7 {[%emt 0:00:05]} 19. Qb2+ {[%emt 0:00:33]} Qf6 {[%emt 0:00:09]} 20. Qxf6+ {[%emt 0:00:21]} Kxf6 {[%emt 0:00:14]} 21. Rxf4 {[%emt 0:00:27]} Rae8 {[%emt 0:00:55]} 22. Nc2 {[%emt 0:06:17]} Nd7 {[%emt 0:03:41]} 23. Raf1 {[%emt 0:03:40]} Re2 {[%emt 0:03:36]} 24. R4f2 {[%emt 0:07:33]} (24. Nd4 $5 {[%cal Rd4e2]} Rxa2 25. g4 $11) 24... Rfe8 {[%emt 0:06:47]} 25. Nd4 {[%emt 0:00:26]} Rxf2 {[%emt 0:00:31]} 26. Kxf2 $15 {[%emt 0:00:05][%mdl 4096] Endgame KRN-KRN} (26. Rxf2 $11 {is superior.} a6 27. Kf1) 26... Nc5 $1 {[%emt 0:00:22]} 27. Kg1 {[%emt 0:04:13]} a6 {[%emt 0:03:46] White is now going downhill.} 28. b4 {[%emt 0:02:15] [#]} (28. Rd1 $17) 28... Nd3 $1 $19 {[%emt 0:01:21][%cal Oe8e4]} 29. Ne6 {[%emt 0:02:18]} Rc8 $1 {[%emt 0:00:41]} ({Inferior is} 29... Nxb4 30. a3 Na2 31. Rb1 $17) 30. c5 {[%emt 0:00:48]} dxc5 {[%emt 0:00:25]} ({Don't do} 30... Nxb4 31. cxd6 Rb8 32. d7 $18) 31. bxc5 {[%emt 0:00:39]} Nxc5 {[%emt 0:01:23]} 32. Rc1 {[%emt 0:00:35]} b6 {[%emt 0:00:33]} 33. Nf4 {[%emt 0:02:03]} (33. Nxc5 $142 Rxc5 34. Rd1) 33... Rd8 {[%emt 0:00:59]} 34. Rb1 {[%emt 0:00:49]} Rd6 {[%emt 0:00:18]} 35. h4 {[%emt 0:00:11]} h6 {[%emt 0:00:37]} 36. h5 {[%emt 0:00:46]} g5 {[%emt 0:00:16][%cal Bg6g5,Bg5g4][%mdl 32]} 37. Ng6 {[%emt 0:00:04]} Ne4 {[%emt 0:00:32]} ({And not} 37... Rxd5 38. Rxb6+ Kf7 39. Kh2 $17) 38. Rc1 {[%emt 0:00:55]} Rxd5 {[%emt 0:00:12]} 39. Rc6+ {[%emt 0:00:33]} Rd6 {[%emt 0:00:19]} 40. Rc8 {[%emt 0:00:02]} (40. Rxd6+ $142 Nxd6 41. Nf8) 40... g4 {[%emt 0:00:39]} 41. Rf8+ {[%emt 0:00:00]} Kg5 {[%emt 0:00:00] [#] ( -> ...Rd1+)} 42. Ne7 {[%emt 0:00:00]} Rd1+ {[%emt 0:00:00] Weighted Error Value: White=0.50/Black=0.04 (flawless)} 0-1

[Event "4NCL 2022-2023"]
[Site "Daventry"]
[Date "2023.02.12"]
[Round "6.1"]
[White "Delaney, Killian"]
[Black "Williams, Simon K"]
[Result "1/2-1/2"]
[ECO "B50"]
[WhiteElo "2300"]
[BlackElo "2465"]
[Annotator "TA"]
[PlyCount "105"]
[EventDate "2022.10.20"]
[EventType "team-tourn"]
[EventCountry "ENG"]
[SourceTitle "playchess.com"]
[Source "ChessBase"]
[SourceQuality "1"]
[TimeControl "40/6000+30:2400+30"]

{[%evp 9,105,14,14,12,12,12,12,9,10,2,0,0,3,0,0,0,0,0,0,0,0,-13,-7,-33,-29,-23,-47,-35,-14,-6,-10,-8,-18,-18,-16,-40,-47,-58,-52,-56,-44,-112,-109,-158,-144,-402,-404,-378,-119,-138,-135,-120,-92,-92,-111,-132,-68,-46,-31,-66,-68,-61,-67,-74,-78,-76,-50,-58,-46,-55,-25,-25,-8,-8,-8,-8,-6,-40,-27,-29,-8,-8,-8,-8,-3,-5,-2,-10,0,0,0,0,0,0,0,0,0,-31]} 1. e4 {[%emt 0:00:04]} c5 {[%emt 0:00:35]} 2. Nf3 {[%emt 0:00:35]} d6 {[%emt 0:01:18]} 3. c3 {[%emt 0:00:21]} Nf6 {[%emt 0:00:33]} 4. Be2 {[%emt 0:00:24]} Bd7 {[%emt 0:02:12]} 5. e5 {[%emt 0:02:54]} dxe5 {[%emt 0:00:18]} 6. Nxe5 {[%emt 0:00:14] Black should prevent Qb3. B50: Sicilian: 2...d6, Miscellaneous.} Nc6 {[%emt 0:00:23]} 7. Nxd7 {[%emt 0:03:15]} Qxd7 {[%emt 0:03:55]} 8. O-O {[%emt 0:01:29]} e6 {[%emt 0:04:26]} 9. d3 {[%emt 0:00:18]} Be7 {[%emt 0:00:42]} 10. Nd2 {[%emt 0:01:12]} O-O {[%emt 0:00:17]} 11. Ne4 {[%emt 0:02:07]} Rad8 {[%emt 0:02:57]} 12. Be3 {[%emt 0:02:49]} b6 {[%emt 0:00:19]} 13. Nxf6+ {[%emt 0:00:08]} Bxf6 {[%emt 0:00:08]} 14. Qc2 {[%emt 0:00:08]} Rc8 {[%emt 0:07:59] [#]} 15. Rad1 $146 {[%emt 0:09:32] [#]} ({Predecessor:} 15. Qa4 Rfd8 16. Rfd1 Nd4 17. Qxd7 Nxe2+ 18. Kf1 Ng3+ 19. hxg3 Rxd7 20. Ke2 Kf8 21. a4 {½-½ Kowalczyk,M (1917)-Suliborski,J (2013) Polanica Zdroj op-B 48th 2012 (6)}) 15... Nd4 $1 {[%emt 0:03:10]} 16. cxd4 {[%emt 0:00:23]} (16. Bxd4 {simplifies} cxd4 17. c4 a5 18. a3) 16... cxd4 {[%emt 0:00:05]} 17. Qb3 {[%emt 0:00:47] Bd2 would be deadly.} dxe3 {[%emt 0:00:05]} 18. fxe3 {[%emt 0:00:04] White is weak on the dark squares} Qd5 {[%emt 0:03:36]} 19. Qxd5 {[%emt 0:03:10]} exd5 {[%emt 0:04:23]} 20. d4 {[%emt 0:10:41]} Bg5 {[%emt 0:00:16]} 21. Rd3 {[%emt 0:00:03]} Rfe8 {[%emt 0:00:25]} 22. Kf2 {[%emt 0:00:07]} Rc2 {[%emt 0:01:24]} 23. Rb3 {[%emt 0:00:07]} Re6 $36 {[%emt 0:00:58][%mdl 2048] Black has the initiative.} 24. Rd1 {[%emt 0:01:02]} f5 {[%emt 0:08:29][%cal Bf7f5,Bf5f4,Bf4e3][%mdl 32]} 25. Re1 {[%emt 0:27:30] [#]} ({White should try} 25. g3 $15) 25... f4 $1 $17 {[%emt 0:02:21]} 26. Kf1 {[%emt 0:01:09]} (26. exf4 $142 Bf6 27. Kf3) 26... Bh4 {[%emt 0:04:45]} ({And not} 26... Rxe3 27. Bf3 $15) 27. Rb1 $2 {[%emt 0:03:32][%mdl 8192]} (27. Rd1 $17 {was necessary.}) 27... fxe3 $19 {[%emt 0:00:40] White must now prevent ...Rf6+.} 28. g3 {[%emt 0:00:05] [#]} Be7 {[%emt 0:05:10]} (28... Bxg3 $1 $19 29. hxg3 Rh6) 29. Ke1 {[%emt 0:05:24]} Kf8 {[%emt 0:09:25]} 30. a3 {[%emt 0:00:13]} Rh6 {[%emt 0:02:19]} 31. h4 {[%emt 0:00:49]} Re6 {[%emt 0:00:49]} 32. Bg4 {[%emt 0:01:34]} Rf6 {[%emt 0:09:57]} ({Better is} 32... Bxh4 $17 33. Bxe6 Bxg3+ 34. Kf1 e2+ 35. Kg1 e1=Q+ 36. Rxe1 Bxe1 37. Rf3+ Ke7 38. Bxd5 Rxb2) 33. Rxe3 $15 {[%emt 0:00:34]} Rff2 {[%emt 0:00:33]} 34. Rf3+ {[%emt 0:00:59]} Rxf3 {[%emt 0:00:06]} 35. Bxf3 {[%emt 0:00:03][%mdl 4096] Endgame KRB-KRB} Bd6 {[%emt 0:01:13]} 36. g4 {[%emt 0:03:18]} Bg3+ {[%emt 0:01:57]} 37. Kd1 {[%emt 0:00:08]} Rc4 {[%emt 0:00:49]} 38. Ke2 {[%emt 0:02:17]} Bxh4 {[%emt 0:00:10]} 39. Rd1 {[%emt 0:03:27]} Bg5 {[%emt 0:01:07]} 40. Bxd5 {[%emt 0:00:44]} Rc2+ {[%emt 0:00:06]} 41. Kd3 {[%emt 0:40:05]} Rxb2 {[%emt 0:40:09]} 42. Rf1+ {[%emt 0:00:09]} Ke7 {[%emt 0:01:00]} 43. Bg8 {[%emt 0:01:21]} Kd6 {[%emt 0:02:36]} 44. Rf7 {[%emt 0:00:51]} Rb3+ {[%emt 0:00:43]} 45. Kc4 {[%emt 0:00:07] The position is equal.} Rxa3 {[%emt 0:00:21] Black wants to play ...a6.} 46. Rxg7 {[%emt 0:00:13]} h6 {[%emt 0:00:51]} 47. Rg6+ {[%emt 0:00:40]} Ke7 {[%emt 0:00:16]} 48. d5 {[%emt 0:02:19]} Bf4 {[%emt 0:00:31]} 49. Kb5 {[%emt 0:09:23]} Kd7 {[%emt 0:08:36]} 50. Rg7+ {[%emt 0:01:28]} Kd6 {[%emt 0:00:58]} 51. Rg6+ {[%emt 0:00:26]} Kc7 {[%emt 0:01:03]} 52. Rg7+ {[%emt 0:01:06]} Kb8 {[%emt 0:02:38]} 53. Rd7 {[%emt 0:12:17] And White is the lucky defender.   Weighted Error Value: White=0.15 (very precise) /Black=0.14 (very precise)} 1/2-1/2

[Event "4NCL 2022-2023"]
[Site "Daventry"]
[Date "2023.02.12"]
[Round "6.2"]
[White "Hebden, Mark L"]
[Black "Bourached, Anthony"]
[Result "1-0"]
[ECO "D29"]
[WhiteElo "2454"]
[BlackElo "2043"]
[Annotator "TA"]
[PlyCount "47"]
[EventDate "2022.10.20"]
[EventType "team-tourn"]
[EventCountry "ENG"]
[SourceTitle "playchess.com"]
[Source "ChessBase"]
[SourceQuality "1"]
[TimeControl "40/6000+30:2400+30"]

{[%evp 15,47,12,21,0,51,61,70,18,25,22,72,0,12,18,39,-11,0,-60,80,0,0,-36,64,0,197,206,198,210,220,206,240,246,271,277]} 1. d4 {[%emt 0:00:10]} d5 {[%emt 0:00:09]} 2. Nf3 {[%emt 0:00:31]} Nf6 {[%emt 0:00:22]} 3. c4 {[%emt 0:00:41]} dxc4 {[%emt 0:00:09]} 4. e3 {[%emt 0:00:12]} e6 {[%emt 0:00:10]} 5. Bxc4 {[%emt 0:00:08]} c5 {[%emt 0:00:18]} 6. O-O {[%emt 0:00:13]} Nc6 {[%emt 0:00:35]} 7. Qe2 {[%emt 0:01:14]} a6 {[%emt 0:03:47]} 8. Bb3 {[%emt 0:04:28]} b5 {[%emt 0:03:34]} 9. a4 {[%emt 0:02:00] D29: Queen's Gambit Accepted: Classical main line: 7 Qe2 with early ...Nbd7.} Rb8 {[%emt 0:03:53]} (9... Na5 $11 10. Nbd2 cxd4) 10. axb5 $14 {[%emt 0:00:17]} axb5 {[%emt 0:00:18] [#]} 11. dxc5 $146 {[%emt 0:01:10]} (11. Nc3 $14) ({Predecessor:} 11. Nc3 c4 12. Bc2 Be7 13. e4 Nb4 14. Bb1 O-O 15. Bf4 Rb6 16. Ra7 Bb7 17. Rd1 {0-1 Breier,A (2368)-Pajeken,J (2382) Bundesliga 2122 2022 (3.5)}) 11... Bxc5 $11 {[%emt 0:00:40]} 12. Nc3 {[%emt 0:01:11]} Qb6 {[%emt 0:01:20] [#]} (12... O-O $11) 13. Bd2 {[%emt 0:06:55]} (13. e4 $1 $16) 13... O-O $1 {[%emt 0:04:11]} 14. Rfc1 {[%emt 0:06:26]} Bd7 {[%emt 0:13:16]} 15. Ng5 {[%emt 0:05:57]} (15. Bc2 $14) 15... Be7 {[%emt 0:04:36]} 16. Nce4 {[%emt 0:03:16]} ({White should play} 16. Nf3 $11) 16... Nd5 {[%emt 0:10:04]} (16... h6 $15 {stays ahead.} 17. Nxf6+ Bxf6) 17. Nf3 {[%emt 0:05:31] White has more active pieces.} (17. Qh5 $16 {[%csl Gg5][%cal Rh5h7]} Bxg5 18. Qxg5 (18. Nxg5 Nf6 $16)) 17... Rfd8 {[%emt 0:06:06]} 18. h4 {[%emt 0:09:48]} b4 {[%emt 0:07:05]} ({Better is} 18... Be8 $15) 19. Ra6 {[%emt 0:05:08]} ({White should try} 19. Neg5 $1 $14) 19... Qb5 $2 {[%emt 0:00:28] [#]} (19... Qb7 $11) 20. Qxb5 $18 {[%emt 0:01:13]} Rxb5 {[%emt 0:00:10]} 21. Raxc6 {[%emt 0:54:31]} Bxc6 {[%emt 0:00:06]} 22. Rxc6 {[%emt 0:00:00]} h6 {[%emt 0:01:04]} 23. Nd4 {[%emt 0:00:00]} Ra5 {[%emt 0:00:33]} 24. Rc1 {[%emt 0:00:00] Against Ra1.   Weighted Error Value: White=0.37/Black=0.59} 1-0